bitfinex-derivatives/quotes_ETHF0:USTF0_20250904
["timestamp","ask_amount","ask_price","bid_price","bid_amount"]
[1757014665193,0.7132,4271.7,4271.6,0.4515]
[1757014665893,0.1968,4271.1,4271.0,3.4183]
[1757014666100,1.13455,4271.1,4271.0,3.6593]
[1757014666301,1.13455,4271.1,4271.0,4.1758]
[1757014666697,0.42141,4270.5,4270.4,3.2078]
[1757014666904,1.13461,4270.5,4270.4,3.4183]
[1757014667090,1.13461,4270.5,4270.4,3.7263]
[1757014667295,1.13461,4270.5,4270.4,3.9348]
[1757014667802,1.12411,4270.5,4270.4,3.9348]
[1757014668102,1.24271,4270.5,4270.4,3.8678]
[1757014669499,1.24271,4270.5,4270.4,4.1756]
[1757014669698,1.12411,4270.5,4270.4,4.1756]
[1757014669895,0.61821,4270.5,4270.4,4.1756]
[1757014670102,1.12411,4270.5,4270.4,4.1756]
[1757014670600,0.61821,4270.5,4270.4,4.1756]
[1757014671404,1.24271,4270.5,4270.4,3.6593]
[1757014671796,1.12411,4270.5,4270.4,4.1643]
[1757014673599,1.24271,4270.5,4270.4,3.4183]
[1757014673902,0.4181,4269.9,4269.8,0.3974]
[1757014674094,1.13287,4269.9,4269.8,0.9452]
[1757014674905,0.42147,4269.9,4269.8,0.9452]
[1757014675604,0.2933,4269.5,4269.4,0.3078]
[1757014675796,0.42151,4269.5,4269.4,1.12672]
[1757014676303,0.2933,4270.0,4269.6,0.3974]
[1757014676304,0.42149,4269.7,4269.6,0.3974]
[1757014676496,0.42149,4269.7,4269.6,0.9452]
[1757014677607,0.42149,4269.7,4269.6,1.3667]
[1757014677896,0.42149,4269.7,4269.6,0.9452]
[1757014679904,0.42149,4269.7,4269.6,1.3667]
[1757014680407,0.42149,4269.7,4269.6,0.6374]
[1757014680807,0.42149,4269.7,4269.6,1.0589]
[1757014681011,0.42149,4269.7,4269.6,0.9452]
[1757014681811,0.42149,4269.7,4269.6,1.0589]
[1757014682104,0.42149,4269.7,4269.6,0.9452]
[1757014682302,0.42149,4269.7,4269.6,1.3667]
[1757014682509,0.42149,4269.7,4269.6,0.9452]
[1757014683110,0.92029,4269.7,4269.6,0.9452]
[1757014683303,0.92029,4269.7,4269.6,0.7052]
[1757014683498,0.42149,4269.7,4269.6,0.9452]
[1757014684702,0.42149,4269.7,4269.6,1.3667]
[1757014685711,0.42149,4269.7,4269.6,0.9452]
[1757014686110,0.42149,4269.7,4269.3,3.408]
[1757014686111,0.42152,4269.4,4269.3,3.408]
[1757014686315,0.42152,4269.4,4269.3,4.153]
[1757014686316,1.13292,4269.4,4269.3,4.153]
[1757014688417,1.13292,4269.4,4269.3,3.648]
[1757014688811,1.13292,4269.4,4269.3,4.153]
[1757014689611,1.13292,4269.4,4269.3,3.408]
[1757014690614,1.13292,4269.4,4269.3,3.2078]
[1757014691020,0.42154,4269.2,4269.1,0.24]
[1757014691217,0.62704,4269.2,4269.1,0.9452]
[1757014692631,0.92034,4269.2,4269.1,0.9452]
[1757014693330,0.62704,4269.2,4269.1,0.9452]
[1757014693529,0.92034,4269.2,4269.1,0.9452]
[1757014695228,0.42154,4269.2,4269.1,0.9452]
[1757014695426,0.42154,4269.2,4269.1,7.913]
[1757014695620,1.13294,4269.2,4269.1,4.153]
[1757014695822,0.42154,4269.2,4269.1,6.25486797]
[1757014696522,0.42154,4269.2,4269.1,4.153]
[1757014697328,0.62704,4269.2,4269.1,4.153]
[1757014697529,0.42154,4269.2,4269.1,4.153]
[1757014698334,0.94544,4269.2,4269.1,4.153]
[1757014698632,1.15044,4269.2,4269.1,4.153]
[1757014698820,1.15044,4269.2,4269.1,6.01613589]
[1757014699024,1.15044,4269.2,4269.1,5.94833589]
[1757014699423,0.42154,4269.2,4269.1,6.25443589]
[1757014699632,0.94694,4269.2,4269.1,6.25443589]
[1757014699930,0.94694,4269.2,4269.1,6.01443589]
[1757014700131,1.15194,4269.2,4269.1,6.25443589]
[1757014702337,1.15194,4269.2,4269.1,0.2002]
[1757014702534,1.15194,4269.2,4269.1,0.7463]
[1757014703030,1.15194,4269.2,4269.1,0.9541]
[1757014703434,0.42154,4269.2,4269.1,0.9541]
[1757014704133,0.62854,4269.2,4269.1,0.9541]
[1757014705634,0.94694,4269.2,4269.1,0.9541]
[1757014706030,0.62854,4269.2,4269.1,0.9541]
[1757014707132,0.62854,4269.2,4269.1,0.9531]
[1757014707530,3.9382,4269.8,4269.7,0.7086]
[1757014707833,3.83628,4269.8,4269.7,0.7086]
[1757014708436,0.62848,4269.8,4269.7,0.7086]
[1757014708634,0.42148,4269.8,4269.7,0.7086]
[1757014709736,4.26139,4270.3,4269.5,0.3557]
[1757014709737,3.83623,4270.3,4270.2,0.7086]
[1757014709925,0.62843,4270.3,4270.2,0.9476]
[1757014710828,0.94683,4270.3,4270.2,0.9476]
[1757014712033,0.42143,4270.3,4270.2,0.9476]
[1757014712224,0.42143,4270.3,4270.2,1.36904]
[1757014712430,0.42143,4270.3,4270.2,0.9476]
[1757014713129,0.42143,4270.3,4270.2,1.36904]
[1757014713326,0.42133,4271.3,4271.2,0.7086]
[1757014713623,0.1272,4272.5,4271.8,0.4025]
[1757014713624,0.42127,4271.9,4271.8,0.4025]
[1757014713828,0.42127,4271.9,4271.8,0.9476]
[1757014715142,0.42124,4272.3,4272.1,0.3061]
[1757014715327,0.42122,4272.4,4272.2,0.6415]
[1757014715528,0.62822,4272.4,4272.3,0.7086]
[1757014715727,1.15167,4271.9,4271.8,0.4025]
[1757014715931,1.15167,4271.9,4271.8,0.4347]
[1757014716841,0.42127,4271.9,4271.8,0.9486]
[1757014717640,0.412,4271.4,4271.3,0.5008]
[1757014717847,0.1272,4271.5,4271.1,0.24]
[1757014717848,1.15174,4271.2,4271.1,0.24]
[1757014718743,1.15174,4271.2,4270.6,3.2078]
[1757014718744,0.7304,4270.9,4270.6,3.2078]
[1757014718946,1.15184,4270.2,4270.1,3.6103]
[1757014719348,1.15184,4270.2,4270.1,3.4025]
[1757014719846,1.15184,4270.2,4270.1,3.2078]
[1757014720039,7.9382,4270.2,4269.6,0.24]
[1757014720239,0.7304,4269.7,4269.6,0.24]
[1757014720749,0.7304,4269.7,4269.4,0.3061]
[1757014720750,0.412,4269.7,4269.4,0.3061]
[1757014721043,0.1272,4270.0,4269.3,3.2078]
[1757014721044,0.7304,4269.6,4269.3,3.2078]
[1757014721241,0.3184,4269.3,4269.1,0.24]
[1757014721440,0.7304,4269.2,4269.1,0.9486]
[1757014722043,3.2078,4269.7,4269.1,0.6425]
[1757014722244,0.7304,4269.6,4269.5,0.1947]
[1757014722645,0.412,4269.6,4269.2,0.3061]
[1757014722847,0.7304,4269.3,4269.2,0.1947]
[1757014723155,0.7304,4269.3,4269.1,0.24]
[1757014723350,3.2078,4269.7,4269.3,0.3061]
[1757014723551,0.207,4269.4,4269.3,0.7086]
[1757014723852,0.5254,4269.4,4269.3,0.7086]
[1757014724047,0.7304,4269.4,4269.3,0.7086]
[1757014724547,0.7304,4269.4,4269.1,0.24]
[1757014725250,0.1272,4269.5,4269.2,0.7086]
[1757014725251,0.5254,4269.3,4269.2,0.7086]
[1757014725454,0.7304,4269.3,4269.2,0.7086]
[1757014726547,0.7304,4269.3,4269.2,0.1947]
[1757014726948,0.7304,4269.3,4268.8,0.3061]
[1757014727148,0.412,4269.2,4269.1,0.5008]
[1757014727349,0.412,4269.2,4269.1,0.7086]
[1757014727350,0.7304,4269.2,4269.1,0.7086]
[1757014727754,1.15194,4269.2,4269.1,0.7086]
[1757014729550,1.15194,4269.2,4269.1,0.4025]
[1757014729848,1.15194,4269.2,4269.1,0.7069]
[1757014730147,0.62854,4269.2,4269.1,0.7069]
[1757014731460,1.14684,4269.2,4269.1,0.7069]
[1757014732361,1.14684,4269.2,4269.1,0.4025]
[1757014732553,1.14416,4268.9,4268.8,0.5]
[1757014732757,1.14416,4268.9,4268.8,0.739]
[1757014732953,1.14416,4268.9,4268.8,0.9506]
[1757014733858,0.42156,4268.9,4268.8,0.9506]
[1757014734061,0.62586,4268.9,4268.8,0.7116]
[1757014734562,0.42156,4268.9,4268.8,0.9506]
[1757014734957,0.94146,4268.9,4268.8,0.9506]
[1757014735960,0.62586,4268.9,4268.8,0.9506]
[1757014737164,0.42156,4268.9,4268.8,0.9506]
[1757014737654,0.62586,4268.9,4268.8,0.9506]
[1757014737855,0.42156,4268.9,4268.8,0.9506]
[1757014738457,3.2078,4269.7,4269.4,0.4072]
[1757014738655,0.62579,4269.6,4269.5,1.0766]
[1757014739551,1.14409,4269.6,4269.5,1.0766]
[1757014739763,1.14409,4269.6,4269.5,0.9506]
[1757014741263,1.14409,4269.6,4269.5,0.6462]
[1757014743162,1.14409,4269.6,4269.5,0.9506]
[1757014743364,1.14409,4269.6,4269.5,0.4346]
[1757014743661,1.05385,4269.2,4268.7,3.2078]
[1757014743869,0.2043,4268.8,4268.7,3.4034]
[1757014744068,0.62587,4268.8,4268.7,3.854]
[1757014744268,0.94147,4268.8,4268.7,4.1584]
[1757014744772,0.62587,4268.8,4268.7,4.1584]
[1757014745265,1.14417,4268.8,4268.7,3.9194]
[1757014745570,1.14417,4268.8,4268.7,4.1584]
[1757014746567,0.42157,4268.8,4268.7,4.1584]
[1757014747679,0.94147,4268.8,4268.7,4.1584]
[1757014747980,0.62587,4268.8,4268.7,4.1584]
[1757014748580,0.42157,4268.8,4268.7,4.1584]
[1757014751182,1.14417,4268.8,4268.7,4.1584]
[1757014751680,0.42157,4268.8,4268.7,4.1584]
[1757014755082,0.62587,4268.8,4268.7,4.1584]
[1757014755282,0.62587,4268.8,4268.7,3.9194]
[1757014755481,0.42157,4268.8,4268.7,4.1584]
[1757014755877,0.94147,4268.8,4268.7,4.1584]
[1757014756182,1.14417,4268.8,4268.7,4.1584]
[1757014756383,0.62587,4268.8,4268.7,4.1584]
[1757014757582,0.62587,4268.8,4268.7,3.9194]
[1757014757783,0.62587,4268.8,4268.7,4.1584]
[1757014758674,1.12977,4268.8,4268.7,4.1584]
[1757014759377,0.62587,4268.8,4268.7,4.1584]
[1757014759577,0.42157,4268.8,4268.7,4.1584]
[1757014761285,0.42157,4268.8,4268.7,7.09598962]
[1757014762673,1.12817,4268.8,4268.7,6.85698962]
[1757014762873,0.93427,4268.8,4268.7,4.1584]
[1757014763078,1.05375,4269.6,4269.0,0.1165]
[1757014763275,0.4215,4269.5,4269.4,0.3025]
[1757014763483,0.633,4269.5,4269.4,0.9534]
[1757014763987,0.9342,4269.5,4269.4,0.9534]
[1757014764189,0.4215,4269.5,4269.4,0.9534]
[1757014764684,0.633,4269.5,4269.4,0.9534]
[1757014765490,0.4215,4269.5,4269.4,0.9534]
[1757014766689,0.42145,4270.0,4269.9,0.4119]
[1757014766890,0.42145,4270.0,4269.9,3.05830929]
[1757014767082,0.42145,4270.0,4269.9,0.9534]
[1757014767583,1.24615,4270.0,4269.9,0.239]
[1757014767786,0.7066,4269.6,4269.1,2.10402534]
[1757014767988,0.3012,4269.1,4269.0,0.239]
[1757014768290,0.7066,4269.1,4269.0,0.5415]
[1757014768484,0.7066,4269.1,4269.0,0.746]
[1757014769083,0.7066,4269.1,4269.0,0.8625]
[1757014769584,0.7066,4269.1,4269.0,1.0699]
[1757014772193,0.7066,4269.1,4269.0,0.746]
[1757014772389,0.3012,4269.0,4268.6,2.10402534]
[1757014772589,0.7066,4268.8,4268.7,0.507]
[1757014772787,3.2078,4269.5,4268.5,2.22052534]
[1757014772788,0.4054,4268.6,4268.5,2.10402534]
[1757014772983,0.4054,4268.6,4268.2,3.5103]
[1757014772984,0.4054,4268.3,4268.2,2.10402534]
[1757014773191,0.4054,4268.3,4267.2,4.16285974]
[1757014773192,0.4944,4268.3,4267.2,3.2078]
[1757014773390,0.4944,4268.3,4266.1,0.2]
[1757014773391,3.2078,4267.9,4266.8,0.239]
[1757014773591,3.2078,4267.7,4266.8,3.4468]
[1757014773793,0.1171,4267.8,4267.2,3.2078]
[1757014773997,0.1171,4267.8,4267.2,3.7148]
[1757014774196,0.1171,4267.8,4267.7,0.7144]
[1757014774496,3.2078,4270.0,4267.9,1.05414]
[1757014774788,1.6595122,4273.1,4267.9,1.05414]
[1757014774789,0.1171,4270.9,4269.6,0.3025]
[1757014774989,0.1171,4270.9,4269.8,0.3025]
[1757014775297,0.3746,4270.0,4269.9,1.05860762]
[1757014775490,0.1171,4271.3,4270.0,0.419]
[1757014775691,0.1171,4271.3,4270.2,0.3025]
[1757014775893,0.1873,4270.6,4270.5,0.321]
[1757014776186,0.60869,4270.6,4270.5,1.14150762]
[1757014776890,3.62911,4271.4,4271.3,0.7144]
[1757014777091,0.60861,4271.4,4271.3,0.61310762]
[1757014777285,0.79591,4271.4,4271.3,1.05860762]
[1757014777688,0.79591,4271.4,4271.3,1.26600762]
[1757014777894,0.42131,4271.4,4271.3,1.26600762]
[1757014779595,0.42131,4271.4,4271.3,1.02500762]
[1757014779801,0.7066,4270.6,4270.5,3.2078]
[1757014779996,0.7066,4270.6,4270.5,0.6529]
[1757014780399,0.7066,4270.6,4270.5,0.4119]
[1757014780605,0.2115,4270.6,4270.5,0.6529]
[1757014780802,0.3012,4270.9,4270.5,0.5284]
[1757014780997,0.2115,4270.7,4270.6,0.6529]
[1757014781204,0.5127,4270.7,4270.6,0.6529]
[1757014781598,3.509,4271.1,4270.6,0.6529]
[1757014781906,0.7066,4271.1,4271.0,0.507]
[1757014782104,0.7066,4271.1,4271.0,0.748]
[1757014782698,0.7066,4271.1,4271.0,0.9554]
[1757014783801,0.2115,4271.1,4271.0,1.0719]
[1757014783994,0.7066,4271.5,4271.4,0.4119]
[1757014784196,0.7066,4271.5,4271.4,0.7144]
[1757014784895,0.7066,4271.5,4271.0,0.3575]
[1757014784896,0.8247,4271.5,4271.0,0.66]
[1757014785097,0.3012,4271.4,4271.0,0.5435]
[1757014785305,0.7066,4271.1,4271.0,0.507]
[1757014785507,0.7066,4271.1,4271.0,0.748]
[1757014785706,0.7066,4271.1,4271.0,0.9554]
[1757014786601,0.1181,4273.0,4271.3,0.4119]
[1757014786602,0.3012,4271.9,4271.3,0.4119]
[1757014786810,0.5127,4271.9,4271.8,0.4119]
[1757014787108,0.7066,4271.9,4271.8,0.7144]
[1757014787799,3.2078,4272.1,4271.9,0.3174]
[1757014788000,3.6011,4272.1,4272.0,0.7306]
[1757014788203,4.31945,4272.1,4272.0,0.7306]
[1757014788597,3.82265,4272.1,4272.0,0.8556]
[1757014789001,0.61485,4272.1,4272.0,0.8556]
[1757014789200,0.42125,4272.1,4272.0,0.8556]
[1757014789404,0.42125,4272.1,4272.0,8.0634]
[1757014789600,0.61485,4272.1,4272.0,4.0634]
[1757014789804,0.91195,4272.1,4272.0,4.3044]
[1757014790406,0.61485,4272.1,4272.0,4.3044]
[1757014790607,0.61485,4272.1,4272.0,4.0634]
[1757014790810,0.91195,4272.1,4272.0,4.3044]
[1757014791302,0.61485,4272.1,4272.0,4.3044]
[1757014791503,0.42125,4272.1,4272.0,4.3044]
[1757014791705,0.42125,4272.1,4272.0,4.60789614]
[1757014792907,3.2078,4273.2,4272.9,0.4132]
[1757014793108,3.2078,4273.2,4272.0,7.87729614]
[1757014793109,0.6904,4272.9,4272.8,0.216]
[1757014793307,0.6904,4272.9,4272.8,0.30331184]
[1757014794816,0.6904,4272.9,4272.8,0.51081184]
[1757014795615,0.6904,4272.9,4272.8,1.02091184]
[1757014795915,0.6904,4272.9,4272.8,0.30331184]
[1757014796911,0.6904,4272.9,4272.8,0.71651184]
[1757014797117,0.4907,4272.9,4272.8,1.02091184]
[1757014797711,3.2078,4273.2,4272.8,1.02091184]
[1757014797916,0.6904,4273.1,4273.0,0.4132]
[1757014798117,0.6904,4273.1,4273.0,0.71651184]
[1757014798920,0.6904,4273.1,4273.0,1.02091184]
[1757014799317,3.2078,4273.2,4273.0,0.71651184]
[1757014799618,0.6904,4273.9,4273.8,0.2075]
[1757014799918,0.4907,4273.9,4273.8,1.02091184]
[1757014800114,0.6904,4273.9,4273.8,0.30331184]
[1757014800316,4.6904,4273.9,4273.8,0.30331184]
[1757014800818,0.6904,4273.9,4273.8,0.30331184]
[1757014801008,1.17499,4273.5,4273.1,0.241]
[1757014801216,0.3933,4272.7,4272.6,3.4153]
[1757014801412,1.11159,4272.7,4272.6,3.6563]
[1757014801608,0.2971,4273.1,4272.6,3.862]
[1757014801809,0.4907,4273.4,4273.3,0.4132]
[1757014802020,1.11152,4273.4,4273.3,0.2075]
[1757014803117,0.2971,4273.3,4272.6,3.2078]
[1757014803418,0.6904,4272.7,4272.3,0.241]
[1757014803718,0.3158,4272.5,4272.4,0.4132]
[1757014804015,0.1222,4273.0,4272.5,0.3044]
[1757014804226,0.2971,4272.9,4272.8,0.7176]
[1757014804422,0.2971,4273.4,4272.8,0.9586]
[1757014805625,0.4907,4273.4,4273.3,0.4132]
[1757014806218,3.2078,4273.7,4273.5,0.83431]
[1757014806419,0.2971,4274.1,4273.6,0.42109]
[1757014806623,0.2971,4274.1,4274.0,0.7176]
[1757014806821,3.33,4274.5,4274.1,0.3044]
[1757014807118,0.6904,4273.6,4273.5,3.4153]
[1757014807316,0.5155,4273.5,4273.4,0.241]
[1757014807818,0.8126,4273.5,4273.4,0.241]
[1757014808021,0.8126,4273.5,4273.4,0.4485]
[1757014808523,0.8126,4273.5,4273.0,3.4488]
[1757014808524,0.2971,4273.4,4273.0,3.4488]
[1757014808726,0.1222,4273.5,4273.0,3.862]
[1757014808727,0.6904,4273.1,4273.0,3.862]
[1757014808917,0.2971,4273.4,4273.3,0.4132]
[1757014809118,0.4907,4273.4,4273.3,0.7176]
[1757014809423,0.6904,4273.1,4273.0,3.4488]
[1757014810525,0.6904,4273.1,4273.0,3.2078]
[1757014810727,0.5155,4273.0,4272.9,0.4485]
[1757014811024,0.8126,4273.0,4272.9,0.4485]
[1757014811618,0.8126,4273.0,4272.9,0.241]
[1757014811827,0.2971,4272.9,4272.5,40.8]
[1757014812015,0.4907,4272.6,4272.5,40.8]
[1757014812220,0.4907,4272.6,4272.5,41.041]
[1757014812423,0.4907,4272.6,4272.5,0.6542]
[1757014812726,0.6904,4272.6,4272.5,0.6542]
[1757014813124,0.4907,4272.6,4272.5,4.16790678]
[1757014813520,0.6904,4272.6,4272.5,0.30590678]
[1757014813727,0.6904,4272.6,4272.5,0.75440678]
[1757014814026,0.6904,4272.6,4272.5,0.96010678]
[1757014814424,0.1222,4273.0,4272.5,1.26450678]
[1757014814728,0.3158,4273.0,4272.9,0.4132]
[1757014814929,0.5155,4273.0,4272.9,0.96010678]
[1757014815130,0.8126,4273.0,4272.9,0.54690678]
[1757014815524,0.8126,4273.0,4272.9,0.75440678]
[1757014816722,0.8126,4273.0,4272.9,0.54690678]
[1757014817117,0.8126,4273.0,4272.9,0.30590678]
[1757014817921,4.8126,4273.0,4272.9,0.30590678]
[1757014819031,5.04663001,4273.0,4272.9,0.30590678]
[1757014819731,4.8126,4273.0,4272.9,0.30590678]
[1757014820826,0.8126,4273.0,4272.9,0.50190678]
[1757014822032,0.8126,4273.0,4272.9,0.29563294]
[1757014822730,0.8126,4273.0,4272.9,0.49163294]
[1757014823028,0.8126,4273.0,4272.9,0.70263294]
[1757014824427,0.8126,4273.0,4272.9,0.29563294]
[1757014824628,0.8126,4273.0,4272.2,0.5439]
[1757014824833,0.2137,4272.4,4272.3,0.70263711]
[1757014825032,0.2137,4272.4,4272.3,1.00553711]
[1757014825033,0.5047,4272.4,4272.3,1.00553711]
[1757014825228,0.1222,4273.0,4272.3,1.00553711]
[1757014825435,0.7088,4272.9,4272.8,0.407]
[1757014825736,0.7088,4272.9,4272.8,0.70263903]
[1757014826128,0.5047,4272.9,4272.8,1.00553903]
[1757014826438,3.2078,4273.9,4273.4,0.3029]
[1757014826632,3.2078,4274.7,4273.8,0.407]
[1757014826830,0.6238,4274.5,4274.4,0.407]
[1757014827128,0.6238,4274.5,4274.4,0.70263903]
[1757014827328,0.8279,4274.5,4274.4,0.29563903]
[1757014827534,4.8279,4274.5,4273.2,0.3029]
[1757014827723,4.8279,4274.5,4273.1,3.2078]
[1757014827724,0.291,4274.4,4273.4,0.3045]
[1757014827923,0.291,4274.4,4274.3,0.196]
[1757014827924,0.5047,4274.4,4274.3,0.196]
[1757014828136,0.2137,4274.4,4274.3,0.7115]
[1757014829529,0.532,4274.8,4274.3,0.7115]
[1757014829729,0.5047,4274.8,4274.7,0.407]
[1757014829934,0.5047,4274.8,4274.7,0.7115]
[1757014830129,0.1191,4275.0,4274.7,0.7115]
[1757014830130,0.291,4275.0,4274.8,0.3045]
[1757014830531,0.2137,4274.9,4274.8,0.196]
[1757014830735,0.5047,4274.9,4274.8,0.7115]
[1757014830936,0.5047,4274.9,4274.5,0.1185]
[1757014830937,0.7088,4274.9,4274.3,0.3045]
[1757014831137,0.7088,4274.9,4274.8,0.196]
[1757014831629,0.7088,4274.9,4274.8,0.7115]
[1757014832431,0.291,4274.8,4274.4,0.5455]
[1757014832626,0.7088,4274.5,4274.4,0.196]
[1757014833233,0.7088,4274.5,4274.4,0.5005]
[1757014833434,0.7088,4274.5,4274.4,0.7115]
[1757014833630,0.1191,4275.0,4274.4,0.407]
[1757014833836,0.1191,4275.0,4274.5,0.3045]
[1757014834039,0.7088,4274.9,4274.8,0.5005]
[1757014834239,0.4178,4274.9,4274.8,0.7115]
[1757014834442,3.2078,4275.6,4275.0,0.1185]
[1757014834632,3.2078,4275.6,4275.5,0.5255]
[1757014834832,0.1191,4276.0,4275.5,0.5255]
[1757014835040,0.4178,4275.7,4275.6,0.211]
[1757014835343,0.4178,4275.7,4275.3,0.3045]
[1757014835541,0.7088,4275.7,4275.6,0.196]
[1757014836443,0.7088,4275.7,4275.6,0.5005]
[1757014837338,0.7088,4275.7,4275.6,0.7115]
[1757014837544,0.7088,4276.2,4276.1,0.196]
[1757014838535,0.2137,4276.2,4276.1,0.407]
[1757014838740,0.1191,4277.0,4276.2,0.3045]
[1757014838741,3.9166,4276.8,4276.2,0.3045]
[1757014838941,0.7088,4276.8,4276.2,0.3045]
[1757014839137,0.7088,4276.8,4276.2,3.5123]
[1757014839342,0.4178,4276.4,4276.3,0.24]
[1757014839544,0.7088,4276.4,4276.3,0.53030384]
[1757014839745,0.7088,4276.4,4276.3,0.29030384]
[1757014842253,0.7088,4276.4,4276.3,1.00180384]
[1757014843246,0.291,4276.4,4276.3,1.00180384]
[1757014843449,0.4178,4276.7,4276.3,0.29030384]
[1757014843651,0.1191,4277.0,4276.2,3.2078]
[1757014843652,0.7088,4276.5,4276.4,0.48630384]
[1757014843841,0.7088,4276.5,4276.4,1.00180384]
[1757014844444,0.8279,4276.5,4276.4,0.69730384]
[1757014844652,0.7088,4276.5,4276.4,1.00180384]
[1757014844853,0.8279,4277.0,4276.9,0.196]
[1757014845055,0.8279,4277.0,4276.9,0.79080384]
[1757014845445,0.8279,4277.0,4276.9,0.48630384]
[1757014846041,0.291,4277.2,4277.0,0.3045]
[1757014846247,0.5047,4277.0,4276.9,0.407]
[1757014846548,0.5047,4277.0,4276.9,1.00130695]
[1757014846746,0.7088,4277.0,4276.9,1.00130695]
[1757014846950,0.2137,4277.0,4276.9,1.00130695]
[1757014847252,0.291,4277.4,4277.0,0.3045]
[1757014847454,0.7088,4277.4,4277.3,0.5005]
[1757014847646,0.7088,4277.4,4277.3,0.79030695]
[1757014847841,0.7088,4277.4,4277.3,1.00130695]
[1757014848049,3.5264,4277.8,4277.3,1.00130695]
[1757014848243,0.5169,4277.7,4277.6,0.7104]
[1757014848455,0.5169,4277.7,4277.6,1.00020695]
[1757014849852,0.7298,4277.7,4277.6,1.00020695]
[1757014850056,0.7298,4277.7,4277.6,0.28980695]
[1757014850251,0.7298,4277.7,4276.9,0.24]
[1757014850457,0.4112,4277.1,4277.0,0.28965862]
[1757014850756,0.7298,4277.1,4277.0,0.28965862]
[1757014851258,0.7298,4277.1,4277.0,0.49835862]
[1757014851457,0.7298,4277.1,4277.0,0.28965862]
[1757014851654,0.7298,4277.1,4277.0,0.28975927]
[1757014853954,3.9376,4277.1,4277.0,0.28975927]
[1757014855466,3.9376,4277.1,4277.0,0.29049002]
[1757014856666,3.9376,4277.1,4277.0,1.00089002]
[1757014856968,3.9376,4277.1,4277.0,0.70049002]
[1757014857168,3.9376,4277.1,4277.0,0.49919002]
[1757014857464,3.9376,4277.1,4277.0,0.29049002]
[1757014859069,3.9376,4277.1,4277.0,0.49919002]
[1757014859265,3.9376,4277.1,4277.0,0.7104]
[1757014859468,3.9376,4277.1,4277.0,0.2087]
[1757014860265,3.9376,4277.1,4277.0,0.29100582]
[1757014860768,3.9376,4277.1,4277.0,0.49970582]
[1757014861065,3.619,4277.1,4277.0,1.00140582]
[1757014861258,3.9376,4277.1,4277.0,1.00140582]
[1757014861462,3.9376,4277.1,4277.0,0.70100582]
[1757014861663,3.9376,4277.1,4277.0,5.12190582]
[1757014861664,3.2078,4277.1,4277.0,5.12190582]
[1757014861858,0.4112,4278.1,4278.0,0.2087]
[1757014862064,0.7298,4278.1,4278.0,0.49970582]
[1757014862270,0.7298,4278.1,4278.0,0.29100582]
[1757014864769,0.1983,4277.0,4276.9,0.7104]
[1757014864967,3.6461,4277.6,4277.5,0.8309]
[1757014865170,0.1983,4277.7,4277.6,0.7104]
[1757014865570,3.4478,4278.2,4277.7,0.3004]
[1757014865772,3.619,4278.2,4278.1,0.2087]
[1757014865977,0.1983,4277.6,4277.5,0.6296]
[1757014866176,0.4112,4277.6,4277.5,0.6296]
[1757014866477,0.4112,4277.6,4277.5,0.8309]
[1757014868674,0.7298,4277.6,4277.5,0.7104]
[1757014868870,0.4112,4277.6,4277.5,0.8309]
[1757014869374,0.4112,4277.6,4277.5,0.5091]
[1757014869771,0.7298,4277.6,4277.5,0.5091]
[1757014869971,0.7298,4277.6,4277.1,0.3004]
[1757014870179,0.4112,4277.6,4277.5,0.2087]
[1757014870371,0.4112,4277.6,4277.5,0.7104]
[1757014870572,3.4478,4277.8,4277.6,0.3004]
[1757014870773,0.1983,4277.7,4277.6,0.7104]
[1757014871475,3.4478,4277.8,4277.6,0.7104]
[1757014871676,3.4478,4277.8,4277.7,0.3004]
[1757014871875,32.47739078,4279.1,4277.7,0.3004]
[1757014871876,3.4478,4278.3,4277.7,0.7104]
[1757014872181,3.859,4278.3,4278.2,0.2087]
[1757014872369,3.859,4278.3,4278.2,0.7104]
[1757014872775,3.2078,4278.3,4278.2,0.7104]
[1757014873676,3.2078,4278.8,4278.5,0.1205]
[1757014873877,3.4061,4278.8,4278.7,0.7104]
[1757014875678,3.619,4278.8,4278.7,0.7104]
[1757014876775,3.619,4278.8,4278.7,1.00037053]
[1757014876978,3.9376,4278.8,4278.7,1.00037053]
[1757014877477,3.2078,4278.8,4278.7,1.00037053]
[1757014877873,0.17,4278.9,4278.8,0.703]
[1757014878080,0.17,4278.9,4278.8,0.99297053]
[1757014878284,0.3645,4278.9,4278.8,0.99297053]
[1757014878482,0.8887,4278.9,4278.8,0.28997053]
[1757014878981,0.5773,4278.9,4278.8,0.99297053]
[1757014879387,0.3645,4278.9,4278.8,0.99297053]
[1757014879586,0.8887,4278.9,4278.8,0.28997053]
[1757014879782,8.3365,4278.9,4278.0,0.1237]
[1757014879979,4.3365,4278.9,4278.1,0.28970075]
[1757014880174,4.3365,4278.9,4278.0,0.1237]
[1757014880382,3.8123,4278.9,4278.1,0.2904]
[1757014880681,0.1056,4278.8,4278.1,0.2904]
[1757014880888,0.3378,4278.2,4278.1,0.703]
[1757014881480,0.3378,4278.2,4278.1,0.5003]
[1757014881681,0.4434,4278.2,4278.0,0.1237]
[1757014881878,0.4434,4278.2,4278.1,0.2904]
[1757014882082,0.3378,4278.2,4278.1,0.2904]
[1757014882283,0.3378,4278.2,4278.1,0.5003]
[1757014884087,0.24,4278.6,4278.1,0.703]
[1757014884288,0.24,4278.6,4278.0,0.1237]